bitfinex/quotes_SOLUSD_20241024
["timestamp","ask_amount","ask_price","bid_price","bid_amount"]
[1729793308241,31.36853722,176.01,175.96,31.36853722]
[1729793308631,31.36853722,176.02,175.96,31.36853722]
[1729793309452,5.6812,176.02,175.97,31.36853722]
[1729793311066,37.04973722,176.02,175.97,31.36853722]
[1729793312462,25.78063534,176.02,175.96,20.09943534]
[1729793315862,22.1181,176.08,176.01,20.09943534]
[1729793316151,42.21753534,176.08,176.03,20.09943534]
[1729793316555,47.89683534,176.08,176.03,20.09943534]
[1729793316756,20.09943534,176.07,176.01,20.09943534]
[1729793317652,25.77903534,176.07,176.01,20.09943534]
[1729793317858,20.09943534,176.06,176.01,20.09943534]
[1729793318850,25.77903534,176.07,176.02,20.09943534]
[1729793322470,20.09943534,176.03,175.9,0.1]
[1729793322649,20.09943534,176.02,175.96,20.09943534]
[1729793323147,20.09943534,176.02,175.97,20.09943534]
[1729793323478,5.6811,176.02,175.98,20.09943534]
[1729793324342,5.6811,176.02,175.97,20.09943534]
[1729793324784,5.6811,176.02,175.98,20.09943534]
[1729793325768,5.6811,176.02,175.97,20.09943534]
[1729793327471,25.78053534,176.02,175.97,20.09943534]
[1729793327765,20.09943534,176.01,175.96,20.09943534]
[1729793329372,25.78103534,176.01,175.96,20.09943534]
[1729793329567,20.09943534,176.0,175.94,20.09943534]
[1729793329765,20.09943534,175.99,175.94,20.09943534]
[1729793330272,20.09943534,176.0,175.94,20.09943534]
[1729793330873,25.78133534,176.0,175.94,20.09943534]
[1729793332175,20.0,176.04,175.99,20.09943534]
[1729793332352,20.09943534,176.02,175.91,0.25098]
[1729793332554,20.09943534,176.01,175.96,20.09943534]
[1729793333259,20.09943534,176.02,175.96,20.09943534]
[1729793333649,5.6814,176.01,175.96,20.09943534]
[1729793335475,25.78083534,176.01,175.96,20.09943534]
[1729793336857,5.6814,176.01,175.97,20.09943534]
[1729793338675,25.6808,176.04,176.0,20.09943534]
[1729793339407,45.78023534,176.04,175.99,20.09943534]
[1729793339755,45.78023534,176.04,175.98,20.09943534]
[1729793341179,5.6808,176.04,175.99,20.09943534]
[1729793341477,5.6808,176.04,176.0,20.09943534]
[1729793341653,22.6811,176.05,176.0,20.09943534]
[1729793342159,42.78053534,176.05,176.0,20.09943534]
[1729793342368,22.6811,176.05,176.0,20.09943534]
[1729793342573,42.78053534,176.05,176.0,20.09943534]
[1729793342767,28.3613,176.05,176.0,20.09943534]
[1729793346379,48.46073534,176.05,175.99,20.09943534]
[1729793346583,20.09943534,176.04,175.99,20.09943534]
[1729793347603,20.09943534,176.0,175.93,20.09943534]
[1729793347886,0.25098,176.03,175.96,20.09943534]
[1729793347887,43.902374,176.03,175.96,20.09943534]
[1729793348063,43.902374,176.03,175.98,20.09943534]
[1729793348263,64.00180934,176.03,175.97,20.09943534]
[1729793349159,5.6811,176.02,175.97,20.09943534]
[1729793349569,25.78053534,176.02,175.96,20.09943534]
[1729793349879,20.09943534,176.01,175.96,20.09943534]
[1729793352183,20.09943534,176.0,175.95,20.09943534]
[1729793352571,25.78103534,176.01,175.95,20.09943534]
[1729793354069,25.78103534,176.01,175.9,5.91339292]
[1729793354070,25.78103534,176.01,175.96,20.09943534]
[1729793354679,5.6816,176.01,175.96,20.09943534]
[1729793354863,5.6816,176.01,175.97,20.09943534]
[1729793356187,5.6816,176.01,175.9,5.91339292]
[1729793356188,5.6816,176.01,175.96,20.09943534]
[1729793356769,20.09943534,176.0,175.95,20.09943534]
[1729793358487,20.09943534,175.96,175.9,5.91339292]
[1729793358678,20.09943534,175.96,175.9,20.09943534]
[1729793358870,20.09943534,175.95,175.84,0.1]
[1729793359182,20.09943534,175.95,175.9,20.09943534]
[1729793360190,25.78283534,175.95,175.84,5.91466503]
[1729793360368,25.78283534,175.95,175.89,20.09943534]
[1729793360369,20.09943534,175.94,175.89,20.09943534]
[1729793360985,25.78283534,175.95,175.85,0.3]
[1729793361283,25.78283534,175.95,175.9,20.09943534]
[1729793361488,28.0293,175.98,175.93,20.09943534]
[1729793361788,48.12873534,175.98,175.93,20.09943534]
[1729793361959,48.12873534,175.98,175.92,20.09943534]
[1729793362777,28.0293,175.98,175.92,20.09943534]
[1729793362978,22.3469,175.98,175.95,20.09943534]
[1729793363173,14.2005,176.05,175.88,0.1]
[1729793363174,20.09943534,176.01,175.96,20.09943534]
[1729793363677,20.09943534,176.01,175.95,20.09943534]
[1729793363988,25.78133534,176.0,175.95,20.09943534]
[1729793366375,25.78133534,176.0,175.87,0.3]
[1729793366376,44.00180934,176.0,175.87,0.3]
[1729793366577,20.09943534,175.98,175.92,20.09943534]
[1729793366887,20.09943534,175.97,175.91,20.09943534]
[1729793367084,0.12549,175.97,175.92,20.09943534]
[1729793367388,20.22492534,175.97,175.91,20.09943534]
[1729793367684,20.09943534,175.96,175.91,20.09943534]
[1729793368588,25.78263534,175.96,175.91,20.09943534]
[1729793368897,25.78263534,175.96,175.9,20.09943534]
[1729793370077,25.78263534,175.96,175.91,20.09943534]
[1729793370284,5.6832,175.96,175.91,20.09943534]
[1729793370477,5.6832,175.96,175.92,20.09943534]
[1729793371589,5.6832,175.96,175.86,80.39774136]
[1729793371590,5.6832,175.96,175.91,20.09943534]
[1729793371992,25.78263534,175.96,175.91,20.09943534]
[1729793374590,25.78263534,175.96,175.9,20.09943534]
[1729793374792,43.15903534,175.95,175.89,20.09943534]
[1729793375588,43.15903534,175.95,175.9,20.09943534]
[1729793375896,5.6837,175.94,175.9,20.09943534]
[1729793377488,5.6837,175.94,175.82,8.22429077]
[1729793377489,25.78313534,175.94,175.89,20.09943534]
[1729793379282,5.6837,175.94,175.89,20.09943534]
[1729793380203,23.0596,175.95,175.92,20.09943534]
[1729793382272,23.0596,175.95,175.91,20.09943534]
[1729793383783,23.0596,175.95,175.92,20.09943534]
[1729793384099,23.0596,175.95,175.91,20.09943534]
[1729793386910,6.3947,175.95,175.92,20.09943534]
[1729793387101,29.459384,175.98,175.93,20.09943534]
[1729793387404,23.776884,175.98,175.93,20.09943534]
[1729793387709,29.459284,175.98,175.93,20.09943534]
[1729793388880,49.55871934,175.98,175.93,20.09943534]
[1729793389100,21.6983,176.0,175.95,20.09943534]
[1729793389301,21.6983,176.0,175.96,20.09943534]
[1729793389507,27.3802,176.0,175.96,20.09943534]
[1729793390001,27.3802,176.0,175.95,20.09943534]
[1729793391204,21.6983,176.0,175.97,20.09943534]
[1729793392699,41.79773534,176.0,175.89,24.027864]
[1729793392889,41.79773534,176.0,175.95,20.09943534]
[1729793392890,47.47953534,176.0,175.95,20.09943534]
[1729793393503,27.3801,176.0,175.95,20.09943534]
[1729793394420,27.3801,176.0,175.96,20.09943534]
[1729793396293,27.3801,176.0,175.95,20.09943534]
[1729793396501,27.3801,176.0,175.96,20.09943534]
[1729793397611,21.6983,176.0,175.97,20.09943534]
[1729793398803,27.3801,176.0,175.96,20.09943534]
[1729793401015,27.3801,176.0,175.97,20.09943534]
[1729793401389,27.3801,176.0,175.96,20.09943534]
[1729793401989,21.6983,176.0,175.98,20.09943534]
[1729793402185,21.6983,176.0,175.97,20.09943534]
[1729793402588,22.0141,176.06,175.99,20.09943534]
[1729793402794,22.0141,176.06,176.0,20.09943534]
[1729793402795,68.35701383,176.05,176.0,20.09943534]
[1729793403014,0.12549,176.04,176.0,20.09943534]
[1729793403208,0.12549,176.04,175.99,20.09943534]
[1729793403716,5.6808,176.03,175.99,20.09943534]
[1729793408005,20.09943534,176.01,175.9,0.3]
[1729793408309,20.09943534,176.01,175.95,20.09943534]
[1729793409322,5.6818,176.0,175.95,20.09943534]
[1729793410023,5.6818,176.0,175.96,20.09943534]
[1729793410223,22.0141,176.06,175.99,20.09943534]
[1729793410519,22.0141,176.06,176.03,20.09943534]
[1729793410722,22.0141,176.06,176.04,20.09943534]
[1729793411926,22.0141,176.06,176.03,20.09943534]
[1729793414106,22.0141,176.06,176.01,20.09943534]
[1729793414330,20.09943534,176.04,175.9,0.4]
[1729793414510,20.09943534,176.03,175.97,20.09943534]
[1729793414704,20.09943534,176.03,175.98,20.09943534]
[1729793415024,20.09943534,176.04,175.98,20.09943534]
[1729793415319,23.902374,176.03,175.99,20.09943534]
[1729793415512,29.583374,176.03,175.99,20.09943534]
[1729793416326,29.583374,176.03,175.98,20.09943534]
[1729793416826,49.68280934,176.03,175.97,20.09943534]
[1729793417024,20.09943534,176.0,175.95,20.09943534]
[1729793418424,25.78133534,176.0,175.95,20.09943534]
[1729793418608,5.6819,176.0,175.95,20.09943534]
[1729793420529,20.09943534,176.0,175.95,20.09943534]
[1729793420713,20.09943534,175.98,175.9,0.3]
[1729793420907,20.09943534,175.98,175.92,20.09943534]
[1729793422221,20.09943534,175.98,175.93,20.09943534]
[1729793422423,20.09943534,175.97,175.92,20.09943534]
[1729793422625,20.25098,175.9,175.79,20.09943534]
[1729793422825,20.09943534,175.85,175.79,20.09943534]
[1729793423631,20.09943534,175.85,175.8,20.09943534]
[1729793423814,20.09943534,175.86,175.8,20.09943534]
[1729793424137,20.09943534,175.92,175.85,20.09943534]
[1729793424315,20.09943534,175.91,175.86,20.09943534]
[1729793424629,20.09943534,175.91,175.79,0.1]
[1729793424630,20.09943534,175.91,175.85,20.09943534]
[1729793427034,20.09943534,175.9,175.85,20.09943534]
[1729793432826,25.78443534,175.9,175.84,20.09943534]
[1729793435240,20.09943534,175.89,175.84,20.09943534]
[1729793436729,25.78483534,175.89,175.84,20.09943534]
[1729793437420,20.09943534,175.87,175.8,0.25098]
[1729793437620,20.09943534,175.86,175.81,20.09943534]
[1729793438846,25.78583534,175.86,175.8,20.09943534]
[1729793439028,20.09943534,175.85,175.8,20.09943534]
[1729793439230,20.09943534,175.85,175.79,20.09943534]
[1729793439539,20.09943534,175.8,175.71,0.1]
[1729793439715,20.09943534,175.8,175.75,20.09943534]
[1729793439915,20.09943534,175.82,175.77,20.09943534]
[1729793440129,20.09943534,175.82,175.76,20.09943534]
[1729793440337,20.09943534,175.81,175.76,20.09943534]
[1729793440924,25.78733534,175.81,175.76,20.09943534]
[1729793441327,5.6866,175.85,175.77,20.09943534]
[1729793441523,20.09943534,175.83,175.77,20.09943534]
[1729793442544,25.78703534,175.82,175.77,20.09943534]
[1729793444229,5.6876,175.82,175.77,20.09943534]
[1729793444523,20.09943534,175.82,175.77,20.09943534]
[1729793445842,25.78723534,175.82,175.77,20.09943534]
[1729793446544,5.6878,175.82,175.77,20.09943534]
[1729793446920,5.6878,175.82,175.78,20.09943534]
[1729793447617,5.6878,175.82,175.77,20.09943534]
[1729793448825,0.2,175.81,175.69,0.12549]
[1729793449025,0.2,175.81,175.77,20.09943534]
[1729793449237,0.2,175.81,175.78,20.09943534]
[1729793449548,0.1,175.85,175.8,20.09943534]
[1729793449749,0.1,175.85,175.83,20.09943534]
[1729793450338,0.1,175.85,175.82,20.09943534]
[1729793450542,0.1,175.86,175.82,20.09943534]
[1729793450543,5.8863,175.86,175.82,20.09943534]
[1729793450738,0.1,175.84,175.82,20.09943534]
[1729793451837,5.8869,175.84,175.79,20.09943534]
[1729793452035,0.1,175.83,175.79,20.09943534]
[1729793452436,0.1,175.83,175.8,20.09943534]
[1729793452638,0.1,175.83,175.8,19.59943534]
[1729793452833,0.2,175.83,175.79,20.09943534]
[1729793453959,0.2,175.83,175.8,20.09943534]
[1729793455844,0.1,175.83,175.8,20.09943534]
[1729793456242,0.2,175.83,175.8,20.09943534]
[1729793456436,0.1,175.83,175.8,20.09943534]
[1729793456748,0.2,175.83,175.8,20.09943534]
[1729793457549,0.1,175.85,175.82,20.09943534]
[1729793457750,0.2,175.88,175.84,20.09943534]
[1729793457956,0.2,175.88,175.77,80.39774136]
[1729793457957,0.1,175.87,175.86,20.09943534]
[1729793458532,0.1,175.87,175.85,20.09943534]
[1729793459047,0.1,175.86,175.76,24.153354]
[1729793459251,0.1,175.86,175.85,20.09943534]
[1729793460134,0.1,175.86,175.84,20.09943534]
[1729793460336,0.1,175.86,175.83,20.09943534]
[1729793460840,0.1,175.87,175.83,20.09943534]
[1729793461051,0.1,175.87,175.84,20.09943534]
[1729793461257,0.2,175.87,175.84,20.09943534]
[1729793461669,0.1,175.86,175.84,20.09943534]
[1729793462153,0.1,175.87,175.84,20.09943534]
[1729793462336,0.1,175.86,175.84,20.09943534]
[1729793463957,0.1,175.86,175.77,80.39774136]
[1729793463958,0.1,175.87,175.85,20.09943534]
[1729793464258,0.2,175.87,175.85,20.09943534]
[1729793464556,0.1,175.86,175.85,20.09943534]
[1729793465455,0.1,175.87,175.85,20.09943534]
[1729793465657,0.1,175.86,175.85,20.09943534]
[1729793465855,0.1,175.92,175.85,20.09943534]
[1729793466154,5.7844,175.92,175.89,20.09943534]
[1729793466353,0.1,175.88,175.87,20.09943534]
[1729793468140,0.2,175.91,175.87,20.09943534]
[1729793468443,0.1,175.9,175.89,20.09943534]
[1729793468842,0.1,175.9,175.78,1.2627216]
[1729793468843,5.7844,175.92,175.88,20.09943534]
[1729793469043,0.1,175.94,175.9,20.09943534]
[1729793469244,0.1,175.92,175.89,20.09943534]
[1729793469448,0.1,175.92,175.88,20.09943534]
[1729793470359,0.1,175.92,175.89,20.09943534]
[1729793470743,0.1,175.92,175.9,20.09943534]
[1729793471758,22.7046,175.95,175.9,20.09943534]
[1729793471960,0.1,175.95,175.92,20.09943534]
[1729793472143,0.1,175.95,175.93,20.09943534]
[1729793472339,0.1,175.97,175.93,20.09943534]
[1729793472545,0.1,175.98,175.93,20.09943534]
[1729793472747,0.1,175.96,175.93,20.09943534]
[1729793473788,0.2,175.98,175.93,20.09943534]
[1729793474067,0.1,175.96,175.93,20.09943534]
[1729793475447,0.1,175.97,175.93,20.09943534]
[1729793475647,0.1,175.96,175.93,20.09943534]
[1729793476559,0.1,175.96,175.92,20.09943534]
[1729793478575,0.1,175.96,175.93,0.3]
[1729793478949,0.1,175.96,175.92,19.89943534]
[1729793479769,0.1,175.96,175.93,0.3]
[1729793480462,0.1,175.97,175.93,20.39943534]
[1729793480765,0.1,175.96,175.93,20.39943534]
[1729793481267,0.1,175.96,175.93,0.3]
[1729793481664,0.2,175.96,175.93,0.3]
[1729793481972,0.1,175.96,175.93,0.3]
[1729793482469,0.2,175.96,175.93,0.3]
[1729793485167,0.1,175.92,175.88,20.09943534]
[1729793485353,0.2,175.92,175.88,20.09943534]
[1729793487171,0.1,175.92,175.88,20.09943534]
[1729793487372,0.2,175.92,175.88,20.09943534]
[1729793489073,20.29943534,175.92,175.87,20.09943534]
[1729793489272,20.29943534,175.91,175.71,70.0]
[1729793489471,20.29943534,175.9,175.85,20.09943534]
[1729793489658,0.2,175.9,175.85,20.09943534]
[1729793490055,0.1,175.9,175.85,20.09943534]
[1729793490254,0.1,175.9,175.86,20.09943534]
[1729793490468,0.2,175.9,175.86,20.09943534]
[1729793490660,0.2,175.92,175.89,20.09943534]
[1729793490859,0.1,175.9,175.89,20.09943534]
[1729793491170,0.1,175.9,175.88,20.09943534]
[1729793492178,0.1,175.92,175.88,20.09943534]
[1729793492770,0.2,175.91,175.88,20.09943534]
[1729793493178,0.1,175.9,175.87,20.09943534]
[1729793493677,0.1,175.9,175.87,19.59943534]
[1729793494374,0.1,175.91,175.87,19.59943534]
[1729793494584,0.1,175.9,175.87,19.59943534]
[1729793495190,0.1,175.91,175.87,19.59943534]
[1729793495363,0.1,175.9,175.87,19.59943534]
[1729793498769,0.2,175.91,175.87,19.59943534]
[1729793498964,0.1,175.91,175.89,20.09943534]
[1729793499167,0.2,175.92,175.89,20.09943534]
[1729793499990,0.1,175.95,175.91,20.09943534]
[1729793500179,22.8211,175.97,175.93,20.09943534]
[1729793500481,22.8211,175.97,175.94,20.09943534]
[1729793501474,22.8211,175.97,175.93,20.09943534]
[1729793501784,0.1,175.94,175.93,20.09943534]
[1729793501989,22.8211,175.97,175.86,80.39774136]
[1729793501990,22.8211,175.97,175.92,20.09943534]
[1729793502169,0.1,175.94,175.92,20.09943534]
[1729793503291,0.1,175.96,175.92,20.09943534]
[1729793503869,22.8211,175.97,175.92,20.09943534]
[1729793504168,22.9211,175.97,175.92,20.09943534]
[1729793504378,0.1,175.94,175.92,20.09943534]
[1729793504570,22.9211,175.97,175.92,20.09943534]
[1729793504765,22.8211,175.97,175.92,20.09943534]
[1729793504986,22.8211,175.97,175.93,20.09943534]
[1729793505392,22.7211,175.97,175.94,20.09943534]
[1729793505583,22.8211,175.97,175.94,20.09943534]
[1729793506881,0.1,175.96,175.94,20.09943534]
[1729793507388,22.7211,175.97,175.94,20.09943534]
[1729793507581,0.1,175.96,175.94,20.09943534]
[1729793507775,0.2,175.98,175.95,20.09943534]
[1729793507990,0.1,175.98,175.95,20.09943534]
[1729793508304,22.6671,176.01,175.97,20.09943534]
[1729793508593,0.1,176.0,175.97,20.09943534]
[1729793508976,22.5671,176.01,175.99,20.09943534]
[1729793509180,0.1,176.02,175.99,20.09943534]
[1729793509382,0.2,176.02,175.99,20.09943534]
[1729793511290,0.2,176.02,175.98,20.09943534]
[1729793511492,20.29943534,176.02,175.97,20.09943534]
[1729793511671,0.1,176.01,175.97,20.09943534]
[1729793512688,20.19943534,176.02,175.97,20.09943534]
[1729793512689,20.29943534,176.02,175.97,20.09943534]
[1729793512881,0.1,176.01,175.97,20.09943534]
[1729793514283,0.1,175.99,175.89,24.027864]
[1729793514503,20.29943534,175.99,175.94,20.09943534]
[1729793514670,0.1,175.98,175.94,20.09943534]
[1729793514876,0.1,175.98,175.93,20.09943534]
[1729793515494,0.1,175.97,175.93,20.09943534]
[1729793517489,0.1,175.96,175.92,20.09943534]
[1729793517678,20.29943534,175.96,175.91,20.09943534]
[1729793517876,0.1,175.95,175.91,20.09943534]
[1729793518078,20.29943534,175.95,175.89,10.04971767]
[1729793518392,20.29943534,175.95,175.89,20.09943534]
[1729793518601,0.1,175.94,175.89,20.09943534]
[1729793519217,0.1,175.94,175.9,20.09943534]
[1729793519493,0.1,175.94,175.91,20.09943534]
[1729793521002,0.1,175.94,175.9,20.09943534]
[1729793521381,0.1,175.94,175.89,20.09943534]
[1729793522285,20.19943534,175.94,175.89,20.09943534]
[1729793522799,20.09943534,175.94,175.89,20.09943534]
[1729793522999,20.19943534,175.94,175.89,20.09943534]
[1729793523988,0.1,175.94,175.9,20.09943534]
[1729793524404,0.1,175.94,175.91,20.09943534]
[1729793524600,0.1,175.94,175.9,20.09943534]
[1729793526398,0.1,175.94,175.89,20.09943534]
[1729793526585,20.09943534,175.92,175.78,44.027864]
[1729793526782,20.19943534,175.92,175.87,20.09943534]
[1729793527099,0.1,175.92,175.88,20.09943534]
[1729793530004,20.29943534,175.93,175.88,20.09943534]
[1729793530385,0.1,175.92,175.88,20.09943534]
[1729793533401,0.1,175.91,175.87,20.09943534]
[1729793533603,20.19943534,175.9,175.85,20.09943534]
[1729793533904,20.19943534,175.88,175.83,20.09943534]
[1729793534103,20.19943534,175.87,175.72,4.38899955]
[1729793534402,20.19943534,175.87,175.71,4.26611327]
[1729793534403,0.1,175.86,175.82,20.09943534]
[1729793539989,0.1,175.86,175.74,0.98503936]
[1729793539990,20.29943534,175.86,175.81,20.09943534]
[1729793540198,0.1,175.85,175.81,20.09943534]
[1729793542111,0.1,175.84,175.8,20.09943534]
[1729793544312,0.1,175.84,175.81,20.09943534]
[1729793544688,0.1,175.87,175.83,20.09943534]
[1729793545003,0.1,175.87,175.77,80.39774136]
[1729793545004,0.1,175.93,175.86,100.4971767]
[1729793545197,6.2211,175.94,175.92,20.09943534]
[1729793545404,0.2,175.93,175.91,20.09943534]
[1729793545603,6.1211,175.94,175.91,20.09943534]
[1729793545810,6.0211,175.94,175.92,20.09943534]
[1729793546117,15.1921,175.95,175.93,20.09943534]
[1729793546293,15.2921,175.95,175.94,20.09943534]
[1729793546495,15.2921,175.95,175.93,20.09943534]
[1729793548817,15.1921,175.95,175.93,20.09943534]
[1729793549418,15.2921,175.95,175.93,20.09943534]
[1729793549623,15.1921,175.95,175.93,20.09943534]
[1729793549914,0.1,175.97,175.94,20.09943534]
[1729793550113,0.1,175.97,175.95,20.09943534]
[1729793550615,6.5806,175.98,175.95,20.09943534]
[1729793550914,0.1,175.96,175.95,20.09943534]
[1729793551122,0.1,175.97,175.95,20.09943534]
[1729793551413,0.1,175.96,175.94,20.09943534]
[1729793551918,0.1,175.97,175.94,20.09943534]
[1729793552107,0.2,175.97,175.94,20.09943534]
[1729793552313,0.1,175.97,175.94,20.09943534]
[1729793552497,0.2,175.97,175.95,20.09943534]
[1729793555400,0.16174474,175.97,175.95,20.09943534]
[1729793555920,0.16174474,175.97,175.94,20.09943534]
[1729793559409,0.06174474,175.97,175.94,20.09943534]
[1729793559609,0.1,175.97,175.95,20.09943534]
[1729793559923,80.39774136,176.04,175.96,20.09943534]
[1729793559924,6.3972,176.02,175.96,20.09943534]
[1729793560123,6.3972,176.02,176.0,20.09943534]
[1729793560711,6.55894474,176.02,176.0,20.09943534]
[1729793560913,6.4972,176.02,176.0,20.09943534]
[1729793561813,6.55894474,176.02,176.0,20.09943534]
[1729793562127,16.70764474,176.04,176.01,20.09943534]
[1729793562300,16.6459,176.04,176.03,20.09943534]
[1729793562500,16.6459,176.04,176.02,20.09943534]
[1729793563210,16.7459,176.04,176.02,20.09943534]
[1729793563418,16.80764474,176.04,176.02,20.09943534]
[1729793563717,16.7459,176.04,176.02,20.09943534]
[1729793564311,16.80764474,176.04,176.02,20.09943534]
[1729793564714,16.80764474,176.04,176.01,20.09943534]
[1729793564900,16.7459,176.04,176.01,20.09943534]
[1729793565507,16.70764474,176.04,176.01,20.09943534]
[1729793565707,16.80764474,176.04,176.01,20.09943534]
[1729793566204,0.1,176.03,176.01,20.09943534]
[1729793567325,0.1,176.03,176.0,20.09943534]
[1729793568124,0.1,176.03,176.01,20.09943534]
[1729793569327,16.70764474,176.04,176.01,20.09943534]
[1729793569328,16.7459,176.04,176.01,20.09943534]
[1729793569527,16.80764474,176.04,176.02,20.09943534]
[1729793569723,0.1,176.03,176.02,20.09943534]
[1729793569924,0.1,176.03,176.01,20.09943534]
[1729793574138,16.80764474,176.04,176.01,20.09943534]
[1729793574320,0.1,176.03,176.01,20.09943534]
[1729793576033,0.06174474,176.02,175.87,1.26162125]
[1729793576214,0.16174474,176.02,175.98,20.09943534]
[1729793576410,0.16174474,176.02,175.99,20.09943534]
[1729793577925,0.06174474,176.02,175.99,20.09943534]
[1729793578120,0.16174474,176.02,175.99,20.09943534]
[1729793580027,0.06174474,176.02,175.99,20.09943534]
[1729793580235,0.16174474,176.02,175.99,20.09943534]
[1729793583540,0.06174474,176.02,175.99,20.09943534]
[1729793583731,0.16174474,176.02,175.99,20.09943534]
[1729793584043,0.06174474,176.02,176.0,20.09943534]
[1729793584348,0.06174474,176.02,175.95,80.39774136]
[1729793584349,16.7459,176.04,176.01,20.09943534]
[1729793584646,16.80764474,176.04,176.01,20.09943534]
[1729793584822,16.80764474,176.04,176.03,20.09943534]
[1729793585018,6.3347,176.06,176.03,20.09943534]
[1729793585214,0.1,176.07,176.05,20.09943534]
[1729793585413,0.1,176.07,176.06,20.09943534]
[1729793585939,0.16174474,176.07,176.05,20.09943534]
[1729793586133,0.1,176.07,176.05,20.09943534]
[1729793586339,0.16174474,176.07,176.05,20.09943534]
[1729793586514,0.16174474,176.07,176.04,20.09943534]
[1729793587238,0.1,176.07,176.04,20.09943534]
[1729793587542,0.1,176.07,176.05,20.09943534]
[1729793588041,0.16174474,176.07,176.05,20.09943534]
[1729793588213,0.1,176.07,176.05,20.09943534]
[1729793589343,16.2392,176.08,176.04,20.09943534]
[1729793589557,0.1,176.07,176.04,20.09943534]
[1729793590123,0.1,176.07,175.96,0.12549]
[1729793590124,0.1,176.07,176.05,20.09943534]
[1729793590519,16.3392,176.08,176.06,20.09943534]
[1729793590724,0.1,176.07,176.06,20.09943534]
[1729793591353,0.1,176.07,176.05,20.09943534]
[1729793591529,16.2392,176.08,176.05,20.09943534]
[1729793591730,16.3392,176.08,176.05,20.09943534]
[1729793591930,16.2392,176.08,176.05,20.09943534]
[1729793592542,0.1,176.07,176.05,20.09943534]
[1729793593353,0.1,176.07,176.04,20.09943534]
[1729793593559,0.16174474,176.07,176.03,20.09943534]
[1729793593762,0.16174474,176.03,175.85,70.0]
[1729793594051,0.1,176.02,175.98,20.09943534]
[1729793594574,0.1,176.02,175.99,20.09943534]
[1729793594734,0.1,176.02,175.98,20.09943534]
[1729793594939,0.1,176.01,175.86,81.53401944]
[1729793595153,0.1,176.01,175.97,20.09943534]
[1729793596141,0.16174474,176.02,175.98,20.09943534]
[1729793596345,0.1,176.01,175.98,20.09943534]
[1729793596538,0.1,175.99,175.86,80.39774136]
[1729793596732,20.26118008,175.99,175.93,20.09943534]
[1729793596937,0.1,175.97,175.93,20.09943534]
[1729793597241,0.1,175.97,175.94,20.09943534]
[1729793597755,0.16174474,175.97,175.92,20.09943534]
[1729793597932,0.1,175.95,175.86,2.73930042]
[1729793598135,0.16174474,175.95,175.91,20.09943534]
[1729793598450,0.1,175.95,175.92,20.09943534]
[1729793599641,0.16174474,175.95,175.92,20.09943534]
[1729793600154,0.16174474,175.95,175.91,20.09943534]
[1729793600534,0.06174474,175.95,175.91,20.09943534]
[1729793600854,0.16174474,175.95,175.91,20.09943534]
[1729793601735,0.1,175.95,175.91,20.09943534]
[1729793602034,0.1,175.95,175.92,20.09943534]
[1729793602656,0.16174474,175.95,175.92,20.09943534]
[1729793605258,0.1,175.98,175.93,20.09943534]
[1729793605464,0.16174474,175.98,175.94,20.09943534]
[1729793606163,0.1,175.97,175.94,20.09943534]
[1729793607175,20.26118008,175.99,175.94,20.09943534]
[1729793607457,0.06174474,175.98,175.96,20.09943534]
[1729793607662,0.1,175.97,175.94,20.09943534]
[1729793608652,0.06174474,175.98,175.94,20.09943534]
[1729793608849,0.1,175.97,175.94,20.09943534]
[1729793610371,0.06174474,175.98,175.94,20.09943534]
[1729793610571,0.1,175.97,175.94,20.09943534]
[1729793612360,0.1,175.97,175.93,20.09943534]
[1729793614267,0.1,175.97,175.87,24.153354]
[1729793614268,0.1,175.97,175.94,20.09943534]
[1729793619068,0.1,175.98,175.94,20.09943534]
[1729793619377,0.1,175.99,175.94,20.09943534]
[1729793619552,0.1,176.0,175.96,20.09943534]
[1729793619871,0.1,176.0,175.95,20.09943534]
[1729793620372,0.1,175.99,175.95,20.09943534]
[1729793620577,0.1,176.0,175.95,20.09943534]
[1729793621367,0.1,176.0,175.96,20.09943534]
[1729793621666,16.2533,176.01,175.97,20.09943534]
[1729793622369,16.2533,176.01,175.98,20.09943534]
[1729793622873,0.1,176.0,175.98,20.09943534]
[1729793623249,16.1533,176.01,175.98,20.09943534]
[1729793623250,16.2533,176.01,175.98,20.09943534]